fUSD/lending_fUSD_20250410
["ID","MTS","AMOUNT","RATE_DAILY","PERIOD"]
[357668755,1744300260005,-272.12,0.00020719,2]
[357668756,1744300260015,-152.83211499,0.00020773,2]
[357668757,1744300260024,-424.69313297,0.00020773,2]
[357668758,1744300260033,-337.28558925,0.00020773,2]
[357668759,1744300260044,-250.0,0.00020819,2]
[357668760,1744300260056,-999.99,0.00020819,2]
[357668761,1744300260066,-16615.01353216,0.00021,2]
[357668762,1744300260076,-22252.22556411,0.00021,2]
[357668763,1744300260087,-300.0,0.00021,2]
[357668764,1744300260096,-1000.0,0.00021272,2]
[357668765,1744300260107,-827.64,0.00021517,2]
[357668766,1744300260117,-2199.38,0.00021518,2]
[357668767,1744300260127,-1633.09,0.00021558,2]
[357668768,1744300260137,-2726.98,0.00021564,2]
[357668769,1744300260146,-2252.79,0.00021596,2]
[357668770,1744300260156,-9583.1,0.00021597,2]
[357668771,1744300260166,-1445.05,0.00021636,2]
[357668772,1744300260177,-200.0,0.00021642,2]
[357668773,1744300260188,-184.57,0.00021657,2]
[357668774,1744300260198,-151.38,0.00021666,3]
[357668775,1744300260210,-2457.99,0.00021666,2]
[357668776,1744300260221,-4308.29,0.0002176,2]
[357668777,1744300260232,-250.0,0.00021799,2]
[357668778,1744300260245,-5752.5,0.00021799,2]
[357668779,1744300260257,-4416.91202572,0.00021799,2]
[357668839,1744300288388,157.1,0.00027624,120]
[357668852,1744300333905,200.0,0.00043795,60]
[357668853,1744300334648,207.4,0.00043795,60]
[357668854,1744300335187,215.0738,0.00043795,60]
[357668855,1744300335858,223.0315306,0.00043795,60]
[357668856,1744300336525,231.28369723,0.00043795,60]
[357668857,1744300337762,239.84119403,0.00043795,60]
[357668858,1744300338407,248.71531821,0.00043795,60]
[357668860,1744300339055,257.91778498,0.00043795,60]
[357668861,1744300339701,267.46074303,0.00043795,60]
[357668862,1744300340348,277.35679052,0.00043795,60]
[357668863,1744300341015,287.61899177,0.00043795,60]
[357668864,1744300341128,1000.0,0.00043795,120]
[357668865,1744300341906,298.26089446,0.00043795,60]
[357668866,1744300342498,309.29654756,0.00043795,60]
[357668867,1744300343152,320.74051982,0.00043795,60]
[357668868,1744300344478,332.60791905,0.00043795,60]
[357668869,1744300344959,344.91441206,0.00043795,60]
[357668870,1744300345752,357.6762453,0.00043795,60]
[357668871,1744300346131,1000.0,0.00043795,60]
[357668872,1744300346237,370.91026638,0.00043795,60]
[357668873,1744300347254,384.63394623,0.00043795,60]
[357668874,1744300347886,384.63394623,0.00043795,60]
[357668877,1744300355586,3000.0,0.00043795,30]
[357668879,1744300363969,150.0,0.00043795,30]
[357668880,1744300364380,206.3,0.00043795,30]
[357668881,1744300364876,1307.3,0.00043795,60]
[357668882,1744300365746,206.3,0.00043795,30]
[357668884,1744300367413,1680.57,0.00043795,30]
[357668885,1744300371392,1067.0,0.00043795,30]
[357668887,1744300375083,1067.0,0.00043795,30]
[357668888,1744300379168,1067.0,0.00043795,30]
[357668889,1744300382968,1067.0,0.00043795,30]
[357668890,1744300387286,1067.0,0.00043795,30]
[357668891,1744300390522,1132.32315051,0.00043795,30]
[357668892,1744300393718,248.79213,0.00043795,30]
[357668895,1744300532914,-4844.1782,0.00021497,2]
[357668896,1744300532940,-215.4235259,0.00021699,2]
[357668897,1744300532965,-3347.45797428,0.00021799,2]
[357668898,1744300532989,-2751.0,0.00021799,2]
[357668899,1744300533013,-23900.0,0.00021799,2]
[357668900,1744300533041,-2260.09,0.00021829,2]
[357668901,1744300533065,-282.8,0.00021861,2]
[357668902,1744300533091,-355.23,0.00021917,2]
[357668903,1744300533115,-680.34,0.00021918,2]
[357668904,1744300533139,-200.0,0.00021978,2]
[357668905,1744300533163,-250.0,0.00021999,2]
[357668906,1744300533188,-2000.0,0.00022,4]
[357668907,1744300536855,1870.15231181,0.00043792,30]
[357668908,1744300537750,-250.0,0.00022,2]
[357668909,1744300537772,-252.77,0.00022071,2]
[357668910,1744300537800,-157.1,0.00022099,2]
[357668911,1744300537823,-1921.64,0.00022104,2]
[357668912,1744300537846,-2000.0,0.00022129,2]
[357668913,1744300537869,-167.34,0.00022267,2]
[357668914,1744300537893,-191.52,0.00022697,2]
[357668915,1744300537918,-191.52,0.00022703,2]
[357668916,1744300537941,-191.52,0.00022709,2]
[357668917,1744300537964,-191.52,0.00022715,2]
[357668918,1744300537989,-191.52,0.00022721,2]
[357668919,1744300538013,-191.52,0.00022727,2]
[357668920,1744300538036,-191.52,0.00022733,2]
[357668921,1744300538063,-191.52,0.00022739,2]
[357668922,1744300538086,-191.52,0.00022745,2]
[357668923,1744300538110,-191.52,0.00022751,2]
[357668924,1744300538134,-191.52,0.00022757,2]
[357668925,1744300538157,-191.52,0.00022763,2]
[357668926,1744300538181,-191.52,0.00022769,2]
[357668927,1744300538205,-191.52,0.00022775,2]
[357668928,1744300538229,-191.52,0.00022781,2]
[357668929,1744300538256,-191.52,0.00022787,2]
[357668930,1744300538280,-191.52,0.00022793,2]
[357668931,1744300538305,-191.52,0.00022799,2]
[357668932,1744300538331,-191.52,0.00022805,2]
[357668933,1744300538355,-191.52,0.00022811,2]
[357668934,1744300538377,-350.0,0.00023,2]
[357668935,1744300544908,1000.0,0.00043792,30]
[357668936,1744300545524,1000.0,0.00043792,30]
[357668937,1744300550468,-355.23,0.00023287,2]
[357668938,1744300550492,-222.86,0.00023836,2]
[357668939,1744300550515,-250.0,0.00023869,2]
[357668940,1744300550539,-1000.0,0.00023931,2]
[357668941,1744300550565,-2000.0,0.00024,4]
[357668942,1744300550590,-340.11910148,0.00024656,2]
[357668943,1744300550613,-355.23,0.00024657,2]
[357668944,1744300550636,-282.03150202,0.00024695,2]
[357668945,1744300550658,-5358.7194,0.000247,2]
[357668946,1744300550682,-151.6,0.0002479,2]
[357668947,1744300550704,-1000.0,0.00024799,2]
[357668948,1744300550727,-518.74317875,0.000248,5]
[357668949,1744300550750,-861.35353323,0.00025,2]
[357668950,1744300550774,-400.0,0.00025,2]
[357668951,1744300550797,-161.57,0.00025042,2]
[357668952,1744300550823,-495.96,0.000254,2]
[357668953,1744300550846,-167.34,0.00025942,2]
[357668954,1744300550869,-4433.65,0.00026,2]
[357668955,1744300550893,-2000.0,0.00026,4]
[357668956,1744300550916,-355.23,0.00026027,2]
[357668957,1744300550941,-166.61,0.00026212,2]
[357668958,1744300550967,-1000.0,0.0002659,2]
[357668959,1744300550990,-222.17,0.00026849,2]
[357668960,1744300551013,-434.68,0.00026849,2]
[357668961,1744300551035,-250.0,0.00027,2]
[357668962,1744300551060,-1406.22006814,0.00027,14]
[357668963,1744300551083,-79.76142359,0.00027,2]
[357668964,1744300551942,-916.56242222,0.00027,2]
[357668965,1744300551967,-450.0,0.00027,2]
[357668966,1744300551990,-355.23,0.00027397,2]
[357668967,1744300552012,-500.0,0.00027397,2]
[357668968,1744300552037,-500.0,0.00027397,2]
[357668969,1744300552060,-500.0,0.00027397,2]
[357668970,1744300552084,-500.0,0.00027397,2]
[357668971,1744300552109,-300.00000001,0.00027397,2]
[357668972,1744300552133,-500.0,0.00027397,2]
[357668973,1744300552159,-500.0,0.00027397,2]
[357668974,1744300552183,-500.0,0.00027397,2]
[357668975,1744300552206,-500.0,0.00027397,2]
[357668976,1744300552229,-500.0,0.00027397,2]
[357668977,1744300552254,-500.0,0.00027397,2]
[357668978,1744300552277,-500.0,0.00027397,2]
[357668979,1744300552304,-500.0,0.00027397,2]
[357668980,1744300552334,-500.0,0.00027397,2]
[357668981,1744300552358,-500.0,0.00027397,2]
[357668982,1744300552384,-500.0,0.00027397,2]
[357668983,1744300552408,-500.0,0.00027397,2]
[357668984,1744300552434,-500.0,0.00027397,2]
[357668985,1744300552459,-500.0,0.00027397,2]
[357668986,1744300552483,-500.0,0.00027397,2]
[357668987,1744300552506,-500.0,0.00027397,2]
[357668988,1744300552529,-500.0,0.00027397,2]
[357668989,1744300552553,-338.74714006,0.00027397,2]
[357668990,1744300552576,-500.0,0.00027397,2]
[357668991,1744300552599,-500.0,0.00027397,2]
[357668992,1744300552622,-500.0,0.00027397,2]
[357668993,1744300552643,-500.0,0.00027397,2]
[357668994,1744300552666,-500.0,0.00027397,2]
[357668995,1744300552690,-500.0,0.00027397,2]
[357668996,1744300552712,-500.0,0.00027397,2]
[357668997,1744300552735,-500.0,0.00027397,2]
[357668998,1744300552760,-500.0,0.00027397,2]
[357668999,1744300552782,-548.7242605,0.00027397,2]
[357669000,1744300552806,-500.0,0.00027397,2]
[357669001,1744300552829,-500.0,0.00027397,2]
[357669002,1744300552853,-500.0,0.00027397,2]
[357669003,1744300552878,-500.0,0.00027397,2]
[357669004,1744300552902,-500.0,0.00027397,2]
[357669005,1744300552926,-500.0,0.00027397,2]
[357669006,1744300552949,-500.0,0.00027397,2]
[357669007,1744300552973,-500.0,0.00027397,2]
[357669008,1744300552997,-500.0,0.00027397,2]
[357669009,1744300553021,-319.21680664,0.00027397,2]
[357669010,1744300553050,-500.0,0.00027397,2]
[357669011,1744300553079,-500.0,0.00027397,2]
[357669012,1744300553104,-500.0,0.00027397,2]
[357669013,1744300553131,-40.59757778,0.00027397,2]
[357669014,1744300554912,-459.40242222,0.00027397,2]
[357669015,1744300554935,-907.16,0.00027397,2]
[357669016,1744300634449,200.0,0.00043792,30]
[357669017,1744300635092,207.4,0.00043792,30]
[357669018,1744300635594,215.0738,0.00043792,30]
[357669019,1744300636274,223.0315306,0.00043792,30]
[357669020,1744300636928,231.28369723,0.00043792,30]
[357669021,1744300637474,200.0,0.00022104,2]
[357669022,1744300637612,239.84119403,0.00043792,30]
[357669023,1744300638277,248.71531821,0.00043792,30]
[357669024,1744300638890,257.91778498,0.00043792,30]
[357669025,1744300639515,267.46074303,0.00043792,30]
[357669026,1744300640149,277.35679052,0.00043792,30]
[357669027,1744300640796,287.61899177,0.00043792,30]
[357669028,1744300641962,298.26089446,0.00043792,30]
[357669029,1744300642135,309.29654756,0.00043792,30]
[357669030,1744300642795,320.74051982,0.00043792,30]
[357669031,1744300643440,332.60791905,0.00043792,30]
[357669032,1744300644188,344.91441206,0.00043792,30]
[357669033,1744300644854,357.6762453,0.00043792,30]
[357669034,1744300645623,370.91026638,0.00043792,30]
[357669035,1744300646160,384.63394623,0.00043792,30]
[357669036,1744300647294,384.63394623,0.00043792,30]
[357669037,1744300762169,209.0,0.00043792,120]
[357669038,1744300833442,181.15,0.00026849,2]
[357669039,1744300906774,1032.38,0.00043765,120]
[357669040,1744300934514,200.0,0.00043765,120]
[357669041,1744300935178,207.4,0.00043765,120]
[357669042,1744300935859,215.0738,0.00043765,120]
[357669043,1744300936529,223.0315306,0.00043765,120]
[357669044,1744300937200,231.28369723,0.00043765,120]
[357669045,1744300938450,239.84119403,0.00043765,120]
[357669046,1744300938664,248.71531821,0.00043765,120]
[357669047,1744300939269,257.91778498,0.00043765,120]
[357669048,1744300939928,267.46074303,0.00043765,120]
[357669049,1744300940597,277.35679052,0.00043765,120]
[357669050,1744300941236,287.61899177,0.00043765,120]
[357669051,1744300942141,298.26089446,0.00043765,120]
[357669052,1744300942584,309.29654756,0.00043765,120]
[357669053,1744300943313,320.74051982,0.00043765,120]
[357669054,1744300943949,332.60791905,0.00043765,120]
[357669055,1744300944551,344.91441206,0.00043765,120]
[357669056,1744300945424,357.6762453,0.00043765,120]
[357669057,1744300946291,370.91026638,0.00043765,120]
[357669058,1744300946951,384.63394623,0.00043765,120]
[357669059,1744300947590,384.63394623,0.00043765,120]
[357669060,1744300961627,2000.0,0.00043765,120]
[357669061,1744300965915,1763.84,0.00022133,2]
[357669062,1744300966131,1763.84,0.00024397,2]
[357669063,1744300966361,1763.84,0.0002666,2]
[357669064,1744300997352,245.08983126,0.00043765,120]
[357669065,1744301020976,320.44956184,0.00043765,120]
[357669066,1744301038189,150.0,0.00021917,2]
[357669067,1744301038447,150.0,0.00023287,2]
[357669068,1744301038750,150.0,0.00024657,2]
[357669069,1744301038993,150.0,0.00026027,2]
[357669070,1744301039385,150.0,0.00027397,2]
[357669071,1744301078816,1099.69,0.00024051,2]
[357669072,1744301132485,269.316506,0.00043764,120]
[357669073,1744301150315,2000.0,0.00043764,30]
[357669074,1744301177070,2997.61,0.00043764,60]
[357669077,1744301232110,-331.65131558,0.00028,4]
[357669078,1744301234046,200.0,0.00043764,120]
[357669079,1744301234684,207.4,0.00043764,120]
[357669080,1744301235659,-1668.34868442,0.00028,4]
[357669081,1744301235680,-250.0,0.0002808,2]
[357669082,1744301235702,-170.68258554,0.0002819,2]
[357669083,1744301235724,-252.0,0.00028356,2]
[357669084,1744301235746,-150.0,0.00028767,2]
[357669085,1744301235767,-1763.84,0.00028924,2]
[357669086,1744301235789,-300.0,0.00028999,2]
[357669087,1744301235810,-2824.2785378,0.00029,2]
[357669088,1744301235884,215.0738,0.00043764,120]
[357669089,1744301236056,223.0315306,0.00043764,120]
[357669090,1744301236634,231.28369723,0.00043764,120]
[357669091,1744301237252,239.84119403,0.00043764,120]
[357669092,1744301237925,248.71531821,0.00043764,120]
[357669093,1744301238595,257.91778498,0.00043764,120]
[357669094,1744301239258,267.46074303,0.00043764,120]
[357669095,1744301239956,277.35679052,0.00043764,120]
[357669096,1744301240614,287.61899177,0.00043764,120]
[357669097,1744301241249,298.26089446,0.00043764,120]
[357669098,1744301241892,309.29654756,0.00043764,120]
[357669099,1744301242515,320.74051982,0.00043764,120]
[357669100,1744301243245,332.60791905,0.00043764,120]
[357669101,1744301243832,344.91441206,0.00043764,120]
[357669102,1744301244494,357.6762453,0.00043764,120]
[357669103,1744301245149,370.91026638,0.00043764,120]
[357669104,1744301246054,384.63394623,0.00043764,120]
[357669105,1744301246454,384.63394623,0.00043764,120]
[357669106,1744301300609,50000.0,0.00043764,30]
[357669108,1744301305050,50000.0,0.00043764,31]
[357669109,1744301309704,50000.0,0.00043764,33]
[357669110,1744301316515,16370.44560705,0.00043764,34]
[357669111,1744301349109,-300.0,0.00028899,2]
[357669112,1744301349131,-4212.30128175,0.000289,2]
[357669113,1744301362406,-6627.27431825,0.000289,2]
[357669114,1744301362427,-5819.96440175,0.00029,2]
[357669119,1744301419809,250.0,0.00019,2]
[357669120,1744301420876,300.0,0.00021,2]
[357669121,1744301421954,350.0,0.00023,2]
[357669122,1744301423234,400.0,0.00025,2]
[357669123,1744301424310,450.0,0.00027,2]
[357669129,1744301432366,-1492.00000001,0.00029,2]
[357669153,1744301432585,-15092.64969587,0.00029,2]
[357669155,1744301432594,-500.0,0.00029,2]
[357669157,1744301432604,-500.0,0.00029068,2]
[357669158,1744301432613,-161.57,0.00029216,2]
[357669160,1744301432624,-150.99,0.00029216,2]
[357669162,1744301432639,-228.54883316,0.0002999,2]
[357669164,1744301432648,-624.35742296,0.00029999,2]
[357669165,1744301432657,-500.0,0.00029999,2]
[357669166,1744301432667,-500.0,0.00029999,2]
[357669167,1744301432677,-431.94126673,0.00029999,2]
[357669168,1744301432686,-500.0,0.00029999,2]
[357669169,1744301432695,-46063.27225101,0.0003,2]
[357669170,1744301432705,-19383.15840286,0.0003,2]
[357669171,1744301432714,-5120.61641406,0.0003,2]
[357669172,1744301432723,-13393.45391161,0.0003,2]
[357669174,1744301432733,-1000.0,0.0003,30]
[357669176,1744301432742,-150.0,0.00030055,2]
[357669178,1744301432751,-1000.0,0.00030086,2]
[357669180,1744301432760,-250.0,0.00030092,2]
[357669182,1744301432769,-150.0,0.00030136,2]
[357669183,1744301432778,-775.73708925,0.00030435,2]
[357669185,1744301432788,-250.0,0.000308,2]
[357669187,1744301432798,-550.0,0.00031,2]
[357669189,1744301432808,-200.0,0.00031028,2]
[357669191,1744301432818,-1763.84,0.00031188,2]
[357669193,1744301432827,-2670.08,0.00031215,2]
[357669195,1744301432837,-150.0,0.00031215,2]
[357669196,1744301432846,-2670.08,0.00031224,2]
[357669198,1744301432855,-2670.08,0.00031232,2]
[357669199,1744301432864,-2670.08,0.0003124,2]
[357669201,1744301432876,-2670.08,0.00031248,2]
[357669213,1744301433112,-2670.08,0.00031257,2]
[357669215,1744301433148,-2670.08,0.00031265,2]
[357669216,1744301433158,-2670.08,0.00031273,2]
[357669217,1744301433169,-2670.08,0.00031281,2]
[357669218,1744301433179,-2670.08,0.00031289,2]
[357669219,1744301433190,-2670.08,0.00031298,2]
[357669220,1744301433201,-2670.08,0.00031306,2]
[357669221,1744301433212,-209.84592498,0.00031312,2]
[357669222,1744301433223,-2670.08,0.00031314,2]
[357669223,1744301433234,-1117.87658047,0.00031321,15]
[357669224,1744301433244,-2670.08,0.00031322,2]
[357669225,1744301433254,-2670.08,0.00031331,2]
[357669226,1744301433264,-2670.08,0.00031339,2]
[357669227,1744301433275,-500.0,0.00031342,2]
[357669228,1744301433284,-2670.08,0.00031347,2]
[357669229,1744301433294,-2670.08,0.00031355,2]
[357669230,1744301433303,-2670.08,0.00031363,2]
[357669231,1744301433315,-2670.08,0.00031372,2]
[357669232,1744301433325,-725.72,0.00031375,2]
[357669233,1744301433335,-500.0,0.00031408,2]
[357669234,1744301433345,-150.0,0.00031506,2]
[357669235,1744301433355,-200.0,0.00031642,7]
[357669236,1744301433364,-248.0,0.00032219,2]
[357669237,1744301433376,-222.17,0.00032646,2]
[357669238,1744301433385,-434.68,0.00032646,2]
[357669239,1744301433395,-164.16,0.00032766,2]
[357669240,1744301433405,-38619.1405,0.00032776,2]
[357669241,1744301433415,-4375.97243326,0.00032849,2]
[357669242,1744301433425,-150.0,0.00032876,2]
[357669243,1744301433435,-725.72,0.00032944,2]
[357669244,1744301433444,-600.0,0.00033,2]
[357669245,1744301433454,-157.1,0.00033149,120]
[357669246,1744301433464,-161.57,0.00033389,2]
[357669247,1744301433474,-1763.84,0.00033452,2]
[357669248,1744301433484,-1099.69,0.00033671,2]
[357669249,1744301433494,-4375.97243326,0.000337,2]
[357669250,1744301433504,-1000.0,0.00033847,2]
[357669251,1744301433513,-164.16,0.00034237,2]
[357669252,1744301433524,-150.0,0.00034246,2]
[357669253,1744301433533,-589.26037339,0.00034247,7]
[357669254,1744301433543,-589.26037339,0.00034247,7]
[357669255,1744301433553,-589.26037339,0.00034247,7]
[357669256,1744301433563,-589.26037339,0.00034247,7]
[357669257,1744301433573,-589.26037339,0.00034247,7]
[357669258,1744301433582,-589.26037339,0.00034247,7]
[357669259,1744301433592,-589.26037339,0.00034247,7]
[357669260,1744301433601,-589.26037339,0.00034247,7]
[357669261,1744301433611,-589.26037339,0.00034247,7]
[357669262,1744301433623,-589.26037339,0.00034247,7]
[357669263,1744301433634,-589.26037338,0.00034247,7]
[357669264,1744301433647,-589.26037338,0.00034247,7]
[357669265,1744301433657,-589.26037338,0.00034247,7]
[357669266,1744301433666,-589.26037338,0.00034247,7]
[357669267,1744301433677,-589.26037338,0.00034247,7]
[357669268,1744301433687,-589.26037338,0.00034247,7]
[357669269,1744301433696,-589.26037338,0.00034247,7]
[357669270,1744301433706,-707.11244806,0.00034247,7]
[357669271,1744301433716,-707.11244806,0.00034247,7]
[357669272,1744301433729,-707.11244806,0.00034247,7]
[357669273,1744301433739,-707.11244806,0.00034247,7]
[357669274,1744301433750,-363.63512475,0.00034375,5]
[357669275,1744301433759,-500.0,0.00034375,5]
[357669276,1744301433769,-725.72,0.00034512,2]
[357669277,1744301433779,-150.0,0.00034548,10]
[357669278,1744301433788,-4375.97243326,0.00034551,2]
[357669279,1744301433799,-160.0,0.0003474,2]
[357669280,1744301433808,-20571.46656122,0.00034768,2]
[357669281,1744301433819,-329.76774795,0.0003488,2]
[357669282,1744301433829,-197.37270051,0.0003489,2]
[357669283,1744301433838,-169.21890122,0.0003489,7]
[357669284,1744301433848,-164.16,0.0003495,2]
[357669285,1744301433857,-164.16,0.0003495,2]
[357669286,1744301433867,-78971.05303991,0.0003496,8]
[357669287,1744301433881,-787.25647,0.0003496,8]
[357669288,1744301433893,-860.66245851,0.0003496,8]
[357669289,1744301433902,-164.16,0.0003496,2]
[357669290,1744301433911,-164.16,0.0003496,2]
[357669291,1744301433921,-2753.16754149,0.0003497,2]
[357669292,1744301433932,-5382.51405527,0.0003497,2]
[357669293,1744301433943,-397.25791611,0.0003497,2]
[357669294,1744301433954,-392.8925,0.0003497,2]
[357669295,1744301435124,-112452.53493693,0.0003497,2]
[357669296,1744301435136,-962.56363887,0.0003497,2]
[357669297,1744301435174,-487.47831857,0.0003497,2]
[357669298,1744301435185,-7867.1,0.0003497,2]
[357669304,1744301438571,-518.74317875,0.00032749,29]
[357669305,1744301438581,-185.71,0.00034673,2]
[357669306,1744301438590,-300.0,0.000347,12]
[357669307,1744301438599,-1999.49649127,0.00034758,2]
[357669308,1744301438622,-1247.85463694,0.00034758,2]
[357669309,1744301438635,-530.2981892,0.00034758,2]
[357669310,1744301438847,-1328.75068259,0.00034758,2]
[357669311,1744301438857,-518.74317875,0.00034811,35]
[357669312,1744301438867,-5106.4,0.0003496,2]
[357669313,1744301438878,-21725.65343011,0.0003497,2]
[357669318,1744301438982,-6086.71630265,0.0003497,2]
[357669320,1744301438991,-1665.92884877,0.0003497,2]
[357669322,1744301439001,-151.61,0.0003497,2]
[357669324,1744301439011,-1117.87658046,0.00034978,30]
[357669326,1744301439020,-13208.9898866,0.00034979,2]
[357669328,1744301439030,-3331.85769754,0.00034979,2]
[357669330,1744301439039,-53559.46568399,0.0003498,2]
[357669336,1744301439155,-819.90553398,0.0003498,2]
[357669396,1744301440750,-700.0,0.000348,12]
[357669397,1744301440760,-38849.1918469,0.0003498,2]
[357669398,1744301440772,-15359.3198734,0.0003498,2]
[357669399,1744301440784,-5581.77678428,0.0003498,2]
[357669400,1744301441048,-720.47905909,0.0003498,2]
[357669401,1744301441059,-419.77238971,0.0003498,2]
[357669402,1744301441071,-1656.58520388,0.0003498,2]
[357669403,1744301441081,-3731.23627561,0.0003498,2]
[357669404,1744301441092,-396.68679,0.0003498,2]
[357669405,1744301441104,-467.56906276,0.0003498,2]
[357669406,1744301441156,-250.47642774,0.0003498,2]
[357669408,1744301441168,-1967.6599925,0.0003498,2]
[357669410,1744301441179,-21518.76382916,0.0003498,2]
[357669412,1744301441188,-41648.2212193,0.0003498,2]
[357669414,1744301441197,-151.61,0.0003498,2]
[357669416,1744301441207,-151.61,0.0003498,2]
[357669418,1744301441216,-500.0,0.00034989,2]
[357669420,1744301441226,-500.0,0.00034989,2]
[357669422,1744301441235,-500.0,0.00034989,2]
[357669424,1744301441244,-500.0,0.00034989,2]
[357669426,1744301441254,-4414.25,0.00034989,2]
[357669427,1744301441264,-4414.25,0.00034989,2]
[357669429,1744301441274,-4414.25,0.00034989,2]
[357669431,1744301441284,-4414.25,0.00034989,2]
[357669433,1744301441294,-4414.25,0.00034989,2]
[357669435,1744301441304,-4414.25,0.00034989,2]
[357669437,1744301441314,-4414.25,0.00034989,2]
[357669439,1744301441323,-4414.25,0.00034989,2]
[357669441,1744301441333,-500.0,0.00034989,2]
[357669443,1744301441342,-2231.0,0.0003499,5]
[357669445,1744301441351,-4954.42443817,0.0003499,120]
[357669643,1744301446611,-537.70499981,0.000349,12]
[357669644,1744301446623,-562.29500019,0.000349,12]
[357669645,1744301446635,-56.31497981,0.0003499,120]
[357669652,1744301447162,-78897.31000001,0.0003499,120]
[357669653,1744301447185,-1464.2718998,0.0003499,120]
[357669655,1744301447196,-958.15751991,0.0003499,120]
[357669659,1744301447231,-120.99575544,0.0003499,120]
[357669662,1744301447242,-787.0,0.0003499,120]
[357669664,1744301447254,-251.93999994,0.0003499,120]
[357669665,1744301452208,430.68786141,0.00033,120]
[357669680,1744301937417,199.95,0.00026849,2]
[357669689,1744302238074,504.09,0.00026849,2]
[357669692,1744302308758,12926.11578499,0.0002,2]
[357669696,1744302448139,-300.0,0.00018999,2]
[357669697,1744302448162,-9539.84762444,0.00019,2]
[357669699,1744302546152,-680.30620263,0.00018,2]
[357669700,1744302546173,-5006.7229376,0.00019,2]
[357669701,1744302546194,-200.0,0.000196,7]
[357669702,1744302546215,-500.0,0.000197,7]
[357669703,1744302546236,-800.0,0.000198,7]
[357669704,1744302546256,-158.96463144,0.000199,3]
[357669705,1744302546277,-1100.0,0.000199,7]
[357669706,1744302546299,-518.74317875,0.000199,2]
[357669707,1744302546319,-255.53001743,0.0001991,2]
[357669708,1744302546339,-514.0,0.0001997,2]
[357669709,1744302546359,-493.67112628,0.00019973,2]
[357669710,1744302546379,-305.3511095,0.00019973,2]
[357669711,1744302546399,-500.0,0.00019973,2]
[357669712,1744302546419,-506.35376498,0.00019973,2]
[357669713,1744302546438,-239.5104396,0.00019973,2]
[357669714,1744302546458,-263.33193069,0.00019973,2]
[357669715,1744302546477,-500.0,0.00019973,2]
[357669716,1744302546497,-152.83211499,0.00019973,2]
[357669717,1744302546516,-17259.63408589,0.00019999,2]
[357669718,1744302546537,-113948.73372102,0.0002,2]
[357669724,1744302567188,-43883.7973,0.0002,2]
[357669725,1744302571097,-153.77726757,0.000199,2]
[357669726,1744302571119,-8500.70827843,0.0002,2]
[357669727,1744302573111,-308572.747,0.0002,2]
[357669732,1744302597374,500.0,0.00032876,120]
[357669745,1744302631496,-8500.0,0.0002,2]
[357669746,1744302631509,-756.79311258,0.0002,2]
[357669747,1744302631552,-472.894422,0.0002,2]
[357669748,1744302631645,-488.85575651,0.0002,2]
[357669749,1744302631711,-415.0,0.0002,2]
[357669887,1744302637656,-639.07923945,0.0002,2]
[357669888,1744302637945,-397.50093136,0.0002,2]
[357670023,1744302639694,-1887.3710111,0.0002,2]
[357670024,1744302639706,-251.99545487,0.0002,2]
[357670025,1744302639718,-59360.27030325,0.0002,2]
[357670026,1744302639863,-291.11032364,0.0002,2]